[Event "Kerkinitida 2021"]
[Site "Yevpatoria"]
[Date "2021.10.24"]
[Round "6.4"]
[White "Tihonov, Gennady"]
[Black "Chos, Alexey"]
[Result "0-1"]
[ECO "A46"]
[WhiteElo "1827"]
[BlackElo "2296"]
[Annotator "ChessBase"]
[PlyCount "198"]
[EventDate "2021.10.19"]
[EventType "swiss"]
[SourceTitle "playchess.com"]
[Source "ChessBase"]
[SourceQuality "1"]
[TimeControl "5400+30"]

1. d4 {[%emt 0:00:04]} Nf6 {[%emt 0:02:54]} 2. Nf3 {[%emt 0:00:19]} d6 {[%emt 0:00:22]} 3. g3 {[%emt 0:02:21]} b5 {[%emt 0:00:51]} 4. Bg2 {[%emt 0:00:41]} Bb7 {[%emt 0:00:02]} 5. O-O {[%emt 0:00:32]} Nbd7 {[%emt 0:00:03]} 6. Re1 {[%emt 0:02:14]} a6 {[%emt 0:02:12]} 7. Nbd2 {[%emt 0:02:01]} c5 {[%emt 0:00:22]} 8. c3 {[%emt 0:01:14]} cxd4 {[%emt 0:00:21]} 9. cxd4 {[%emt 0:01:15]} e6 {[%emt 0:02:32]} 10. b3 {[%emt 0:03:55]} Be7 {[%emt 0:00:35]} 11. Bb2 {[%emt 0:00:05]} Nb6 {[%emt 0:00:13]} 12. e4 {[%emt 0:00:41]} d5 {[%emt 0:00:16]} 13. e5 {[%emt 0:01:17]} Nfd7 {[%emt 0:00:04]} 14. Nf1 {[%emt 0:04:26]} a5 {[%emt 0:00:22]} 15. Ne3 {[%emt 0:01:45]} a4 {[%emt 0:00:13]} 16. Bf1 {[%emt 0:01:18]} Ba6 {[%emt 0:00:26]} 17. Qd2 {[%emt 0:02:16]} O-O {[%emt 0:00:40]} 18. Bc3 {[%emt 0:00:55]} Nb8 {[%emt 0:00:16]} 19. Nc2 {[%emt 0:02:55]} Nc6 {[%emt 0:01:12]} 20. Rec1 {[%emt 0:02:45]} Qd7 {[%emt 0:01:51]} 21. Nb4 {[%emt 0:00:49]} Nb8 {[%emt 0:00:53]} 22. Bd3 {[%emt 0:09:22]} Rc8 {[%emt 0:00:59]} 23. h4 {[%emt 0:01:28]} Bb7 {[%emt 0:01:57]} 24. h5 {[%emt 0:02:48]} Na6 {[%emt 0:04:29]} 25. Nxa6 {[%emt 0:02:26]} Rxa6 {[%emt 0:02:24]} 26. Bb4 {[%emt 0:01:38]} Rxc1+ {[%emt 0:04:17]} 27. Rxc1 {[%emt 0:00:08]} axb3 {[%emt 0:00:14]} 28. axb3 {[%emt 0:00:19]} Nc4 {[%emt 0:09:08]} 29. bxc4 {[%emt 0:02:59]} dxc4 {[%emt 0:00:40]} 30. Be2 {[%emt 0:00:21]} h6 {[%emt 0:00:13]} 31. Bxe7 {[%emt 0:04:54]} Qxe7 {[%emt 0:00:13]} 32. Qb2 {[%emt 0:00:01]} Bc6 {[%emt 0:05:37]} 33. Ne1 {[%emt 0:06:26]} Ra3 {[%emt 0:03:08]} 34. Rc3 {[%emt 0:01:31]} Rxc3 {[%emt 0:01:28]} 35. Qxc3 {[%emt 0:00:04]} Bd5 {[%emt 0:02:08]} 36. Nc2 {[%emt 0:01:10]} Be4 {[%emt 0:02:35]} 37. Nb4 {[%emt 0:06:16]} Qa7 {[%emt 0:00:28]} 38. f3 {[%emt 0:01:45]} Bb7 {[%emt 0:00:35]} 39. Kf2 {[%emt 0:00:54]} Qa4 {[%emt 0:01:01]} 40. Ke1 {[%emt 0:00:32]} Qa8 {[%emt 0:00:24]} 41. Bd1 {[%emt 0:00:15]} Qd8 {[%emt 0:00:15]} 42. f4 {[%emt 0:04:06]} Be4 {[%emt 0:03:13]} 43. Kf2 {[%emt 0:01:16]} g5 {[%emt 0:00:29]} 44. hxg6 {[%emt 0:00:18]} Bxg6 {[%emt 0:00:26]} 45. Bc2 {[%emt 0:02:08]} Bxc2 {[%emt 0:00:13]} 46. Nxc2 {[%emt 0:00:07]} Qa8 {[%emt 0:00:01]} 47. Ne3 {[%emt 0:03:02]} Qe4 {[%emt 0:01:27]} 48. Ng4 {[%emt 0:03:09]} Kg7 {[%emt 0:00:23]} 49. Nh2 {[%emt 0:04:05]} Qb1 {[%emt 0:03:32]} 50. Nf3 {[%emt 0:00:50]} Qa2+ {[%emt 0:00:10]} 51. Nd2 {[%emt 0:03:06]} b4 {[%emt 0:01:55]} 52. Qxb4 {[%emt 0:00:56]} Qc2 {[%emt 0:00:08]} 53. Qxc4 {[%emt 0:04:01]} Qxd2+ {[%emt 0:00:38]} 54. Kf3 {[%emt 0:00:12]} h5 {[%emt 0:01:40]} 55. Qa4 {[%emt 0:03:28]} Qd3+ {[%emt 0:00:15]} 56. Kg2 {[%emt 0:00:29]} Qe2+ {[%emt 0:00:08]} 57. Kg1 {[%emt 0:00:44]} Qf3 {[%emt 0:00:13]} 58. Kh2 {[%emt 0:00:12]} Qf2+ {[%emt 0:00:47]} 59. Kh3 {[%emt 0:00:43]} Qg1 {[%emt 0:00:12]} 60. Qc6 {[%emt 0:01:05]} Qxd4 {[%emt 0:00:07]} 61. Qf3 {[%emt 0:00:01]} Kh6 {[%emt 0:01:38]} 62. Kh4 {[%emt 0:02:27]} Qd8+ {[%emt 0:00:06]} 63. Kh3 {[%emt 0:00:04]} Qd5 {[%emt 0:01:25]} 64. Kg2 {[%emt 0:01:41]} Qd2+ {[%emt 0:03:51]} 65. Kf1 {[%emt 0:01:12]} Qc1+ {[%emt 0:07:35]} 66. Ke2 {[%emt 0:00:13]} Qc2+ {[%emt 0:00:49]} 67. Ke3 {[%emt 0:01:43]} Qf5 {[%emt 0:00:40]} 68. Kd4 {[%emt 0:00:56]} Kg7 {[%emt 0:00:57]} 69. Qe3 {[%emt 0:01:09]} Qg4 {[%emt 0:00:14]} 70. Kc5 {[%emt 0:00:10]} Qd1 {[%emt 0:01:14]} 71. Kc4 {[%emt 0:00:13]} Qd5+ {[%emt 0:00:12]} 72. Kc3 {[%emt 0:00:13]} Kg6 {[%emt 0:00:09]} 73. Kb4 {[%emt 0:01:00]} Kf5 {[%emt 0:00:10]} 74. Qa7 {[%emt 0:00:25]} Kg6 {[%emt 0:01:15]} 75. Qe7 {[%emt 0:00:28]} Qd4+ {[%emt 0:03:14]} 76. Kb5 {[%emt 0:00:20]} Kg7 {[%emt 0:00:58]} 77. Qg5+ {[%emt 0:01:30]} Kf8 {[%emt 0:00:03]} 78. Qxh5 {[%emt 0:00:33]} Qd3+ {[%emt 0:01:10]} 79. Kc5 {[%emt 0:00:11]} Qxg3 {[%emt 0:00:27]} 80. Qh8+ {[%emt 0:00:19]} Ke7 {[%emt 0:00:05]} 81. Qf6+ {[%emt 0:00:12]} Ke8 {[%emt 0:00:03]} 82. Kd6 {[%emt 0:00:58]} Qd3+ {[%emt 0:00:25]} 83. Kc5 {[%emt 0:00:37]} Qc3+ {[%emt 0:00:17]} 84. Kd6 {[%emt 0:00:08]} Qb4+ {[%emt 0:00:52]} 85. Kc6 {[%emt 0:00:38]} Qa4+ {[%emt 0:00:16]} 86. Kc5 {[%emt 0:00:46]} Qa5+ {[%emt 0:00:05]} 87. Kc6 {[%emt 0:00:22]} Qa6+ {[%emt 0:00:22]} 88. Kc7 {[%emt 0:00:14]} Qa5+ {[%emt 0:00:38]} 89. Kc6 {[%emt 0:00:11]} Qd5+ {[%emt 0:01:24]} 90. Kb6 {[%emt 0:00:48]} Qc4 {[%emt 0:00:09]} 91. Kb7 {[%emt 0:00:19]} Qc5 {[%emt 0:00:08]} 92. Ka6 {[%emt 0:01:02]} Qb4 {[%emt 0:00:09]} 93. Ka7 {[%emt 0:00:57]} Qb5 {[%emt 0:00:09]} 94. Qh8+ {[%emt 0:00:35]} Kd7 {[%emt 0:00:02]} 95. Qf8 {[%emt 0:00:44]} Qa5+ {[%emt 0:00:16]} 96. Kb7 {[%emt 0:00:26]} Qc7+ {[%emt 0:00:04]} 97. Ka6 {[%emt 0:00:16]} Kc6 {[%emt 0:00:08]} 98. Qe8+ {[%emt 0:00:22]} Kd5 {[%emt 0:00:13]} 99. Qa4 {[%emt 0:00:13]} Qc6+ {[%emt 0:00:07]} 0-1

[Event "Kerkinitida 2021"]
[Site "Yevpatoria"]
[Date "2021.10.24"]
[Round "6.5"]
[White "Polukhin, Alexander"]
[Black "Baranov, Jury"]
[Result "0-1"]
[ECO "C00"]
[WhiteElo "2152"]
[BlackElo "2147"]
[Annotator "ChessBase"]
[PlyCount "68"]
[EventDate "2021.10.19"]
[EventType "swiss"]
[SourceTitle "playchess.com"]
[Source "ChessBase"]
[SourceQuality "1"]
[TimeControl "5400+30"]

1. e4 {[%emt 0:00:03]} e6 {[%emt 0:00:17]} 2. b3 {[%emt 0:00:05]} d5 {[%emt 0:00:21]} 3. Bb2 {[%emt 0:00:09]} dxe4 {[%emt 0:00:34]} 4. Nc3 {[%emt 0:00:08]} Nf6 {[%emt 0:00:18]} 5. Qe2 {[%emt 0:00:08]} Be7 {[%emt 0:00:21]} 6. O-O-O {[%emt 0:00:13]} O-O {[%emt 0:00:34]} 7. g4 {[%emt 0:00:13]} a5 {[%emt 0:03:08]} 8. a4 {[%emt 0:01:41]} c6 {[%emt 0:02:38]} 9. g5 {[%emt 0:04:09]} Nd5 {[%emt 0:00:29]} 10. h4 {[%emt 0:00:45]} Na6 {[%emt 0:31:21]} 11. Qxe4 {[%emt 0:11:46]} Nc5 {[%emt 0:07:23]} 12. Qd4 {[%emt 0:07:54]} f6 {[%emt 0:09:09]} 13. Bg2 {[%emt 0:07:32]} Qc7 {[%emt 0:02:33]} 14. Nh3 {[%emt 0:08:26]} Kh8 {[%emt 0:02:52]} 15. f4 {[%emt 0:09:47]} e5 {[%emt 0:08:11]} 16. Qc4 {[%emt 0:15:50]} Nb4 {[%emt 0:10:42]} 17. gxf6 {[%emt 0:10:39]} gxf6 {[%emt 0:00:01]} 18. Ne4 {[%emt 0:00:51]} b5 {[%emt 0:04:51]} 19. Qe2 {[%emt 0:02:44]} bxa4 {[%emt 0:01:07]} 20. Nxc5 {[%emt 0:04:16]} a3 {[%emt 0:00:47]} 21. Ba1 {[%emt 0:03:05]} Bxc5 {[%emt 0:01:12]} 22. fxe5 {[%emt 0:00:44]} Bf5 {[%emt 0:03:06]} 23. exf6 {[%emt 0:01:32]} Qf7 {[%emt 0:00:02]} 24. Qc4 {[%emt 0:03:11]} Qxc4 {[%emt 0:00:17]} 25. bxc4 {[%emt 0:00:18]} Nxc2 {[%emt 0:00:02]} 26. Bc3 {[%emt 0:04:30]} Nd4 {[%emt 0:00:02]} 27. d3 {[%emt 0:00:37]} Rab8 {[%emt 0:00:56]} 28. Kd2 {[%emt 0:01:36]} Bb4 {[%emt 0:01:30]} 29. Rb1 {[%emt 0:00:41]} c5 {[%emt 0:00:23]} 30. Nf4 {[%emt 0:01:07]} Rxf6 {[%emt 0:00:44]} 31. Nd5 {[%emt 0:00:43]} Rg6 {[%emt 0:00:18]} 32. Bf1 {[%emt 0:00:32]} Bxc3+ {[%emt 0:01:37]} 33. Nxc3 {[%emt 0:00:27]} Rxb1 {[%emt 0:00:09]} 34. Nxb1 {[%emt 0:00:13]} a2 {[%emt 0:00:06]} 0-1

[Event "Kerkinitida 2021"]
[Site "Yevpatoria"]
[Date "2021.10.24"]
[Round "6.6"]
[White "Brusilovskiy, Boris"]
[Black "Polukhin, Sergey"]
[Result "1/2-1/2"]
[ECO "B22"]
[WhiteElo "2067"]
[BlackElo "1410"]
[Annotator "ChessBase"]
[PlyCount "98"]
[EventDate "2021.10.19"]
[EventType "swiss"]
[SourceTitle "playchess.com"]
[Source "ChessBase"]
[SourceQuality "1"]
[TimeControl "5400+30"]

1. e4 {[%emt 0:00:05]} c5 {[%emt 0:00:07]} 2. c3 {[%emt 0:00:28]} g6 {[%emt 0:00:11]} 3. d4 {[%emt 0:00:46]} cxd4 {[%emt 0:00:14]} 4. cxd4 {[%emt 0:01:20]} d5 {[%emt 0:00:27]} 5. e5 {[%emt 0:01:44]} Nc6 {[%emt 0:00:56]} 6. Nf3 {[%emt 0:00:36]} Bg4 {[%emt 0:01:36]} 7. Be2 {[%emt 0:03:44]} Nh6 {[%emt 0:01:43]} 8. O-O {[%emt 0:00:52]} Nf5 {[%emt 0:03:16]} 9. Nbd2 {[%emt 0:05:11]} a5 {[%emt 0:08:20]} 10. h3 {[%emt 0:13:53]} Bxf3 {[%emt 0:00:20]} 11. Nxf3 {[%emt 0:00:07]} Qb6 {[%emt 0:03:55]} 12. Bd3 {[%emt 0:06:46]} Nfxd4 {[%emt 0:09:40]} 13. Nxd4 {[%emt 0:03:41]} Qxd4 {[%emt 0:01:52]} 14. Qb3 {[%emt 0:08:12]} Qb4 {[%emt 0:12:14]} 15. Qxd5 {[%emt 0:09:34]} Rd8 {[%emt 0:00:26]} 16. Qb5 {[%emt 0:00:23]} Bg7 {[%emt 0:04:26]} 17. Be3 {[%emt 0:07:45]} Qxb5 {[%emt 0:04:25]} 18. Bxb5 {[%emt 0:00:06]} Bxe5 {[%emt 0:00:04]} 19. Bh6 {[%emt 0:07:00]} f6 {[%emt 0:04:00]} 20. h4 {[%emt 0:07:11]} Kf7 {[%emt 0:01:16]} 21. Rae1 {[%emt 0:02:31]} Rd4 {[%emt 0:06:01]} 22. f4 {[%emt 0:02:11]} Bd6 {[%emt 0:03:23]} 23. b3 {[%emt 0:01:38]} Re8 {[%emt 0:05:20]} 24. g3 {[%emt 0:03:05]} Rd2 {[%emt 0:04:21]} 25. f5 {[%emt 0:00:21]} Rd4 {[%emt 0:05:58]} 26. Bc4+ {[%emt 0:01:54]} Rxc4 {[%emt 0:00:45]} 27. bxc4 {[%emt 0:00:03]} Bxg3 {[%emt 0:00:11]} 28. Rb1 {[%emt 0:03:11]} gxf5 {[%emt 0:07:22]} 29. Rxb7 {[%emt 0:01:11]} Rg8 {[%emt 0:01:07]} 30. Kh1 {[%emt 0:00:27]} Rg4 {[%emt 0:00:36]} 31. Bd2 {[%emt 0:01:41]} f4 {[%emt 0:04:25]} 32. Be1 {[%emt 0:04:21]} Rxh4+ {[%emt 0:02:41]} 33. Kg1 {[%emt 0:00:39]} Nd4 {[%emt 0:02:08]} 34. Rd7 {[%emt 0:02:19]} Ne2+ {[%emt 0:01:42]} 35. Kg2 {[%emt 0:00:10]} Rh2+ {[%emt 0:00:07]} 36. Kf3 {[%emt 0:00:10]} Kg6 {[%emt 0:01:15]} 37. Rd2 {[%emt 0:00:43]} Bxe1 {[%emt 0:00:43]} 38. Rxe1 {[%emt 0:00:52]} Kf5 {[%emt 0:01:02]} 39. Rdxe2 {[%emt 0:01:24]} Rh3+ {[%emt 0:00:07]} 40. Kf2 {[%emt 0:00:20]} e5 {[%emt 0:00:20]} 41. Rb1 {[%emt 0:00:30]} f3 {[%emt 0:00:39]} 42. Re3 {[%emt 0:01:24]} Kf4 {[%emt 0:00:07]} 43. Rbb3 {[%emt 0:00:42]} e4 {[%emt 0:00:13]} 44. c5 {[%emt 0:00:33]} Rh2+ {[%emt 0:00:42]} 45. Ke1 {[%emt 0:00:36]} Rh1+ {[%emt 0:01:00]} 46. Kf2 {[%emt 0:00:11]} Rh2+ {[%emt 0:00:14]} 47. Ke1 {[%emt 0:00:42]} Rh1+ {[%emt 0:00:36]} 48. Kf2 {[%emt 0:00:18]} Rh2+ {[%emt 0:00:47]} 49. Ke1 {[%emt 0:00:22]} Rh1+ {[%emt 0:00:06]} 1/2-1/2

[Event "Kerkinitida 2021"]
[Site "Yevpatoria"]
[Date "2021.10.24"]
[Round "6.7"]
[White "Cherunov, Svyatoslav"]
[Black "Samson, Anna Rao. T"]
[Result "1-0"]
[ECO "C55"]
[WhiteElo "1240"]
[BlackElo "1573"]
[Annotator "NA"]
[PlyCount "125"]
[EventDate "2021.10.19"]
[EventType "swiss"]
[SourceTitle "playchess.com"]
[Source "ChessBase"]
[SourceQuality "1"]
[TimeControl "5400+30"]

1. e4 {[%emt 0:00:04]} e5 {[%emt 0:00:05]} 2. Nf3 {[%emt 0:00:06]} Nc6 {[%emt 0:00:11]} 3. Bc4 {[%emt 0:00:05]} h6 {[%emt 0:00:15]} 4. Nc3 {[%emt 0:00:09]} Nf6 {[%emt 0:00:06]} 5. d3 {[%emt 0:00:05]} Bb4 {[%emt 0:00:09]} 6. Bd2 {[%emt 0:00:13]} d6 {[%emt 0:00:47]} 7. h3 {[%emt 0:00:07]} Qe7 {[%emt 0:00:15]} 8. Nd5 {[%emt 0:00:29]} Bxd2+ {[%emt 0:00:19]} 9. Qxd2 {[%emt 0:00:14]} Nxd5 {[%emt 0:00:07]} 10. Bxd5 {[%emt 0:00:14]} Nd4 {[%emt 0:01:06]} 11. Nxd4 {[%emt 0:00:20]} exd4 {[%emt 0:00:10]} 12. O-O {[%emt 0:00:13]} O-O {[%emt 0:00:31]} 13. c3 {[%emt 0:00:07]} c6 {[%emt 0:00:08]} 14. Bb3 {[%emt 0:00:15]} Qf6 {[%emt 0:00:29]} 15. cxd4 {[%emt 0:00:57]} Qxd4 {[%emt 0:00:17]} 16. Qc3 {[%emt 0:00:09]} Qxc3 {[%emt 0:00:28]} 17. bxc3 {[%emt 0:00:12]} Be6 {[%emt 0:00:09]} 18. f4 {[%emt 0:00:23]} Rad8 {[%emt 0:00:21]} 19. f5 {[%emt 0:00:16]} Bxb3 {[%emt 0:00:18]} 20. axb3 {[%emt 0:00:05]} g6 {[%emt 0:00:13]} 21. Rxa7 {[%emt 0:00:25]} Rd7 {[%emt 0:00:33]} 22. Rf3 {[%emt 0:01:08]} Rb8 {[%emt 0:00:57]} 23. Kf2 {[%emt 0:00:31]} d5 {[%emt 0:00:13]} 24. exd5 {[%emt 0:00:52]} Rxd5 {[%emt 0:00:14]} 25. g4 {[%emt 0:00:57]} gxf5 {[%emt 0:00:13]} 26. gxf5 {[%emt 0:00:21]} b5 {[%emt 0:00:31]} 27. f6 {[%emt 0:00:28]} b4 {[%emt 0:01:03]} 28. c4 {[%emt 0:00:09]} Rd4 {[%emt 0:00:32]} 29. Rg3+ {[%emt 0:00:17]} Kf8 {[%emt 0:00:31]} 30. Ke3 {[%emt 0:00:38]} Rbd8 {[%emt 0:00:11]} 31. Kd2 {[%emt 0:00:34]} h5 {[%emt 0:00:28]} 32. Rg7 {[%emt 0:00:15]} Rxd3+ {[%emt 0:00:18]} 33. Ke2 {[%emt 0:00:39]} R3d7 {[%emt 0:03:00]} 34. Rxd7 {[%emt 0:00:55]} Rxd7 {[%emt 0:00:08]} 35. Rh7 {[%emt 0:00:06]} Kg8 {[%emt 0:00:24]} 36. Rxh5 {[%emt 0:00:12]} Rd6 {[%emt 0:00:20]} 37. Rg5+ {[%emt 0:00:54]} Kf8 {[%emt 0:01:20]} 38. Rf5 {[%emt 0:00:25]} Ke8 {[%emt 0:00:21]} 39. c5 {[%emt 0:00:34]} Re6+ {[%emt 0:00:38]} 40. Kd3 {[%emt 0:00:07]} Kd7 {[%emt 0:00:15]} 41. Rf4 {[%emt 0:00:22]} Kc7 {[%emt 0:02:01]} 42. Kc4 {[%emt 0:00:21]} Re3 {[%emt 0:00:07]} 43. h4 {[%emt 0:00:16]} Kd7 {[%emt 0:00:39]} 44. Kxb4 {[%emt 0:00:06]} Ke6 {[%emt 0:00:17]} 45. Ka4 {[%emt 0:01:36]} Kd5 {[%emt 0:00:25]} 46. Rg4 {[%emt 0:04:50]} Rf3 {[%emt 0:00:47]} 47. b4 {[%emt 0:02:43]} Rxf6 {[%emt 0:00:20]} 48. h5 {[%emt 0:00:14]} Rh6 {[%emt 0:00:09]} 49. Rh4 {[%emt 0:00:23]} Ke5 {[%emt 0:00:11]} 50. b5 {[%emt 0:00:27]} cxb5+ {[%emt 0:00:09]} 51. Kxb5 {[%emt 0:00:05]} Kd5 {[%emt 0:00:07]} 52. Rf4 {[%emt 0:03:07]} Rxh5 {[%emt 0:00:17]} 53. Rxf7 {[%emt 0:00:11]} Kd4 {[%emt 0:00:18]} 54. Rd7+ {[%emt 0:01:06]} Ke5 {[%emt 0:00:18]} 55. c6 {[%emt 0:01:16]} Ke6+ {[%emt 0:00:31]} 56. Kb6 {[%emt 0:00:14]} Rf5 {[%emt 0:00:13]} 57. Rd2 {[%emt 0:00:34]} Rf8 {[%emt 0:00:17]} 58. c7 {[%emt 0:00:34]} Rf7 {[%emt 0:00:30]} 59. c8=Q+ {[%emt 0:02:36]} Ke5 {[%emt 0:00:19]} 60. Qe8+ {[%emt 0:00:25]} Kf6 {[%emt 0:00:09]} 61. Rf2+ {[%emt 0:00:36]} Kg5 {[%emt 0:00:15]} 62. Qg8+ {[%emt 0:00:46]} Kh4 {[%emt 0:00:15]} 63. Rg2 {[%emt 0:00:41]} 1-0

[Event "Kerkinitida 2021"]
[Site "Yevpatoria"]
[Date "2021.10.24"]
[Round "6.8"]
[White "Aryslanov, Leonidas"]
[Black "Grinivetskii, Mark"]
[Result "0-1"]
[ECO "C55"]
[WhiteElo "1121"]
[BlackElo "1350"]
[Annotator "NA"]
[PlyCount "55"]
[EventDate "2021.10.19"]
[EventType "swiss"]
[SourceTitle "playchess.com"]
[Source "ChessBase"]
[SourceQuality "1"]
[TimeControl "5400+30"]

1. e4 {[%emt 0:00:07]} e5 {[%emt 0:00:03]} 2. Nf3 {[%emt 0:00:33]} Nc6 {[%emt 0:00:09]} 3. Nc3 {[%emt 0:01:10]} Nf6 {[%emt 0:00:02]} 4. Bc4 {[%emt 0:00:49]} Bb4 {[%emt 0:00:17]} 5. d3 {[%emt 0:00:40]} h6 {[%emt 0:00:12]} 6. a3 {[%emt 0:00:26]} Bxc3+ {[%emt 0:00:19]} 7. bxc3 {[%emt 0:00:09]} d6 {[%emt 0:00:03]} 8. O-O {[%emt 0:00:30]} Bg4 {[%emt 0:00:09]} 9. h3 {[%emt 0:01:11]} Bh5 {[%emt 0:00:07]} 10. Rb1 {[%emt 0:00:51]} Rb8 {[%emt 0:00:15]} 11. Be3 {[%emt 0:00:29]} d5 {[%emt 0:00:51]} 12. exd5 {[%emt 0:01:07]} Nxd5 {[%emt 0:00:06]} 13. Bxd5 {[%emt 0:01:06]} Qxd5 {[%emt 0:00:13]} 14. g4 {[%emt 0:01:06]} Bg6 {[%emt 0:00:18]} 15. c4 {[%emt 0:00:56]} Qe6 {[%emt 0:00:17]} 16. Re1 {[%emt 0:01:13]} O-O {[%emt 0:00:41]} 17. Qd2 {[%emt 0:07:31]} f5 {[%emt 0:01:14]} 18. gxf5 {[%emt 0:03:01]} Qxf5 {[%emt 0:01:16]} 19. Nh4 {[%emt 0:04:34]} Qxh3 {[%emt 0:00:31]} 20. Nxg6 {[%emt 0:00:24]} Qg4+ {[%emt 0:00:09]} 21. Kh1 {[%emt 0:04:22]} Rf3 {[%emt 0:00:54]} 22. Bf4 {[%emt 0:04:14]} exf4 {[%emt 0:00:38]} 23. Nxf4 {[%emt 0:00:10]} Rxf4 {[%emt 0:00:27]} 24. Re3 {[%emt 0:02:11]} Nd4 {[%emt 0:01:18]} 25. Rg3 {[%emt 0:01:16]} Qh4+ {[%emt 0:00:38]} 26. Kg2 {[%emt 0:00:30]} Rbf8 {[%emt 0:00:55]} 27. Rf1 {[%emt 0:00:58]} Nf3 {[%emt 0:00:32]} 28. Rh1 {[%emt 0:01:04]} 0-1

[Event "Kerkinitida 2021"]
[Site "Yevpatoria"]
[Date "2021.10.25"]
[Round "7.5"]
[White "Polukhin, Sergey"]
[Black "Aryslanov, Leonidas"]
[Result "1-0"]
[ECO "C66"]
[WhiteElo "1410"]
[BlackElo "1121"]
[Annotator "NA RC"]
[PlyCount "89"]
[EventDate "2021.10.19"]
[EventType "swiss"]
[SourceTitle "playchess.com"]
[Source "ChessBase"]
[SourceQuality "1"]
[TimeControl "5400+30"]

1. e4 {[%emt 0:00:02]} e5 {[%emt 0:01:23]} 2. Nf3 {[%emt 0:00:08]} Nc6 {[%emt 0:00:36]} 3. Bb5 {[%emt 0:00:09]} d6 {[%emt 0:00:37]} 4. d4 {[%emt 0:00:14]} Bd7 {[%emt 0:01:28]} 5. Nc3 {[%emt 0:00:28]} Nf6 {[%emt 0:00:20]} 6. O-O {[%emt 0:00:35]} Be7 {[%emt 0:00:09]} 7. Re1 {[%emt 0:02:55]} exd4 {[%emt 0:00:36]} 8. Nxd4 {[%emt 0:00:08]} Nxd4 {[%emt 0:00:31]} 9. Bxd7+ {[%emt 0:00:10]} Qxd7 {[%emt 0:00:11]} 10. Qxd4 {[%emt 0:00:04]} c5 {[%emt 0:00:32]} 11. Qd3 {[%emt 0:00:38]} Rd8 {[%emt 0:00:45]} 12. Bf4 {[%emt 0:04:01]} Nh5 {[%emt 0:02:24]} 13. Be3 {[%emt 0:01:25]} O-O {[%emt 0:02:06]} 14. Rad1 {[%emt 0:00:59]} f5 {[%emt 0:01:33]} 15. Bxc5 {[%emt 0:03:15]} fxe4 {[%emt 0:01:56]} 16. Qd5+ {[%emt 0:00:23]} Kh8 {[%emt 0:02:12]} 17. Qxh5 {[%emt 0:00:00]} Rf5 {[%emt 0:00:13]} 18. Qe2 {[%emt 0:02:16]} Rxc5 {[%emt 0:00:22]} 19. Nxe4 {[%emt 0:01:18]} Re5 {[%emt 0:02:44]} 20. f4 {[%emt 0:02:11]} Re6 {[%emt 0:00:41]} 21. Qd3 {[%emt 0:02:01]} d5 {[%emt 0:01:52]} 22. Ng3 {[%emt 0:04:52]} Bc5+ {[%emt 0:01:24]} 23. Kh1 {[%emt 0:00:32]} Rxe1+ {[%emt 0:01:31]} 24. Rxe1 {[%emt 0:00:01]} Bf2 {[%emt 0:01:11]} 25. Re2 {[%emt 0:01:22]} Bxg3 {[%emt 0:00:38]} 26. Qxg3 {[%emt 0:00:02]} Qb5 {[%emt 0:00:36]} 27. Qe3 {[%emt 0:00:33]} h6 {[%emt 0:02:28]} 28. c3 {[%emt 0:00:37]} Rc8 {[%emt 0:02:16]} 29. h3 {[%emt 0:01:01]} Qa5 {[%emt 0:01:03]} 30. a3 {[%emt 0:00:40]} a6 {[%emt 0:01:02]} 31. f5 {[%emt 0:03:00]} d4 {[%emt 0:03:37]} 32. Qe6 {[%emt 0:00:27]} Rf8 {[%emt 0:01:23]} 33. cxd4 {[%emt 0:01:22]} Rxf5 {[%emt 0:00:35]} 34. Qe8+ {[%emt 0:01:40]} Kh7 {[%emt 0:00:16]} 35. Qe4 {[%emt 0:00:11]} Kg6 {[%emt 0:01:01]} 36. g4 {[%emt 0:00:39]} Kg5 {[%emt 0:00:23]} 37. Qxf5+ {[%emt 0:00:14]} Qxf5 {[%emt 0:00:10]} 38. gxf5 {[%emt 0:00:02]} Kxf5 {[%emt 0:00:06]} 39. d5 {[%emt 0:00:05]} g5 {[%emt 0:00:12]} 40. d6 {[%emt 0:00:03]} h5 {[%emt 0:00:10]} 41. d7 {[%emt 0:00:03]} g4 {[%emt 0:00:13]} 42. d8=Q {[%emt 0:00:06]} gxh3 {[%emt 0:00:13]} 43. Qf8+ {[%emt 0:00:21]} Kg6 {[%emt 0:00:21]} 44. Re6+ {[%emt 0:00:13]} Kh7 {[%emt 0:00:13]} 45. Rh6# {[%emt 0:00:06]} 1-0

[Event "Kerkinitida 2021"]
[Site "Yevpatoria"]
[Date "2021.10.25"]
[Round "7.6"]
[White "Iljin, Viktor"]
[Black "Tihonov, Gennady"]
[Result "0-1"]
[ECO "D27"]
[WhiteElo "1066"]
[BlackElo "1827"]
[Annotator "NA RC"]
[PlyCount "86"]
[EventDate "2021.10.19"]
[EventType "swiss"]
[SourceTitle "playchess.com"]
[Source "ChessBase"]
[SourceQuality "1"]
[TimeControl "5400+30"]

{[%evp 8,86,35,33,36,5,-5,15,25,-14,0,-33,-24,-36,-25,-27,-41,-28,-19,-44,-29,-218,-193,-204,243,220,245,-225,-233,32767,32767,32767,-237,-241,-181,-231,-242,-235,-236,-221,-318,-241,-305,-344,-429,-386,-427,-435,-379,32767,32767,-246,-309,32767,32767,32767,32767,32767,-485,-469,-981,-722,-1021,-1939,-5309,-5214,-29981,-29970,-29982,-12838,-29970,-29975,-29984,-29982,-29984,-12845,-29987,-29983,-29988,-29987,-29984]} 1. d4 {[%emt 0:00:03]} d5 {[%emt 0:00:09]} 2. c4 {[%emt 0:00:20]} dxc4 {[%emt 0:00:12]} 3. e3 {[%emt 0:00:09]} a6 {[%emt 0:00:09]} 4. Bxc4 {[%emt 0:00:16]} e6 {[%emt 0:00:09]} 5. Nf3 {[%emt 0:00:16]} Nf6 {[%emt 0:00:06]} 6. Nc3 {[%emt 0:00:13]} c5 {[%emt 0:00:10]} 7. O-O {[%emt 0:00:32]} Nc6 {[%emt 0:00:03]} 8. b3 {[%emt 0:00:53]} cxd4 {[%emt 0:03:25]} 9. Nxd4 {[%emt 0:02:20]} Nxd4 {[%emt 0:00:18]} 10. Qxd4 {[%emt 0:00:24]} Qxd4 {[%emt 0:00:10]} 11. exd4 {[%emt 0:00:08]} b5 {[%emt 0:01:49]} 12. Bd3 {[%emt 0:14:00]} Bb7 {[%emt 0:00:11]} 13. Bg5 {[%emt 0:01:46]} Rc8 {[%emt 0:07:16]} 14. Nxb5 $2 {[%emt 0:21:59]} ({Better is} 14. Ne2 $15) 14... axb5 {[%emt 0:00:50]} 15. Bxb5+ {[%emt 0:01:01]} Bc6 $4 {[%emt 0:03:02] [#]} (15... Kd8 $19 {avoids the disaster.} 16. a4 h6) 16. Rfc1 $1 {[%emt 0:01:28]} Kd7 {[%emt 0:00:15] [#]} 17. Bxc6+ $4 {[%emt 0:02:00]} (17. Rxc6 $1 $18 Rxc6 18. Rc1 {[%mdl 64] Pin}) 17... Rxc6 {[%emt 0:00:06]} 18. Rxc6 {[%emt 0:00:06]} Kxc6 {[%emt 0:00:05]} 19. Bxf6 {[%emt 0:00:03]} gxf6 {[%emt 0:00:07]} 20. Rc1+ {[%emt 0:00:11]} Kb7 {[%emt 0:01:41]} 21. a4 {[%emt 0:00:37]} (21. Kf1 $142) 21... Ba3 {[%emt 0:01:37]} 22. Rc4 {[%emt 0:01:45]} Rc8 {[%emt 0:00:38]} 23. Rxc8 {[%emt 0:02:33]} Kxc8 {[%emt 0:00:07]} 24. Kf1 {[%emt 0:00:08]} Bb2 {[%emt 0:02:45]} 25. Ke2 {[%emt 0:00:02]} Bxd4 {[%emt 0:00:08]} 26. f3 {[%emt 0:00:03]} Kb7 {[%emt 0:04:03]} 27. Kd3 {[%emt 0:00:32]} Bg1 {[%emt 0:00:17]} 28. h3 {[%emt 0:00:03]} f5 {[%emt 0:03:49]} 29. g4 {[%emt 0:01:44]} f4 {[%emt 0:02:25]} 30. Ke4 {[%emt 0:01:01]} Be3 {[%emt 0:00:12]} 31. Kd3 {[%emt 0:04:59]} Kc6 {[%emt 0:08:05]} 32. b4 {[%emt 0:02:23]} Kd5 {[%emt 0:07:05]} 33. a5 {[%emt 0:00:36]} e5 {[%emt 0:00:45]} 34. g5 {[%emt 0:01:36]} Bf2 {[%emt 0:01:42]} 35. b5 {[%emt 0:00:19]} Be1 {[%emt 0:02:02]} 36. a6 {[%emt 0:01:35]} Bf2 {[%emt 0:00:12]} 37. Ke2 {[%emt 0:00:46]} Bb6 {[%emt 0:00:14]} 38. Kd3 {[%emt 0:00:35]} Ba7 {[%emt 0:00:24]} 39. Kc3 {[%emt 0:00:35]} e4 {[%emt 0:00:15]} 40. fxe4+ {[%emt 0:00:05]} Kxe4 {[%emt 0:00:04]} 41. Kb4 {[%emt 0:00:01]} f3 {[%emt 0:00:17]} 42. Ka5 {[%emt 0:00:02]} f2 {[%emt 0:00:44]} 43. b6 {[%emt 0:00:02] [#]} Bxb6+ $1 {[%emt 0:00:45] Promotion} 0-1